fUSD/lending_fUSD_20240220
["ID","MTS","AMOUNT","RATE_DAILY","PERIOD"]
[314624445,1708463448291,-150.0,0.00044979,2]
[314624446,1708463448301,-804.58,0.00044981,120]
[314624448,1708463448310,-150.0,0.00044982,2]
[314624450,1708463448321,-470.8380019,0.00044989,2]
[314624453,1708463448331,-347.7279917,0.00044999,60]
[314624455,1708463448340,-150.0,0.00044999,4]
[314624457,1708463448351,-150.0,0.00044999,4]
[314624459,1708463448361,-150.0,0.00044999,4]
[314624461,1708463448371,-150.0,0.00044999,4]
[314624463,1708463448380,-32350.39643736,0.00045,35]
[314624569,1708463714781,2740.1593,0.0003442,30]
[314624570,1708463940928,150.99,0.00034931,30]
[314624571,1708464446094,-151.97,0.00027397,2]
[314624572,1708464446114,-158.94,0.00027397,2]
[314624573,1708464446138,-65.93355864,0.00031634,2]
[314624574,1708464475628,299.99,0.00034794,30]
[314624579,1708464545096,-140.06644136,0.00031634,2]
[314624580,1708464545116,-203.22520032,0.000332,2]
[314624581,1708464545136,-952.14641633,0.000333,2]
[314624582,1708464545158,-206.0,0.00034213,7]
[314624583,1708464545178,-164.66307775,0.00034419,2]
[314624584,1708464545199,-1575.2331,0.0003442,2]
[314624585,1708464545219,-150.0,0.00034519,3]
[314624586,1708464545240,-1896.99548683,0.0003452,2]
[314624587,1708464547077,-499.99995,0.0003452,2]
[314624590,1708464568079,-1603.23015117,0.0003452,2]
[314624591,1708464568101,-3172.441393,0.0003452,2]
[314624592,1708464568125,-155.62640414,0.00034793,4]
[314624593,1708464568145,-870.028232,0.00034794,2]
[314624594,1708464568166,-5480.24281969,0.00034794,2]
[314624595,1708464570111,-520.09556231,0.00034794,2]
[314624596,1708464570134,-4758.662089,0.00034794,2]
[314624597,1708464570161,-2186.36,0.00034794,2]
[314624598,1708464570192,-499.99,0.00034794,2]
[314624599,1708464570219,-150.99,0.00034794,2]
[314624600,1708464570246,-544.8902,0.00034831,2]
[314624601,1708464570277,-699.89,0.00034835,2]
[314624602,1708464570306,-1060.51604774,0.0003493,2]
[314624603,1708464570332,-164.66307769,0.0003493,2]
[314624604,1708464570359,-418.62325757,0.00034931,2]
[314624611,1708464631537,-184.98362258,0.0003442,2]
[314624612,1708464631546,-150.0,0.0003493,3]
[314624613,1708464631556,-400.0,0.0003493,3]
[314624614,1708464631565,-219.40637742,0.00034931,2]
[314624615,1708464631577,-522.00800801,0.00034931,2]
[314624616,1708464631586,-619.39502887,0.00034931,2]
[314624617,1708464631754,-111.31974276,0.00034931,2]
[314624618,1708464631766,-550.0,0.00034931,2]
[314624619,1708464631933,-294.32638485,0.00034931,2]
[314624620,1708464631962,-6425.41001952,0.00034931,2]
[314624621,1708464631972,-6344.882786,0.00034931,2]
[314624622,1708464631982,-473.5649975,0.00035058,2]
[314624623,1708464631991,-1450.047054,0.00035068,2]
[314624624,1708464632001,-3905.12022015,0.00035068,2]
[314624625,1708464632016,-583.71000234,0.00035068,2]
[314624626,1708464632033,-979.94850117,0.00035068,2]
[314624627,1708464632046,-641.78023561,0.00035068,2]
[314624629,1708464637427,-3890.00501073,0.00035068,2]
[314624630,1708464637437,-7931.103483,0.00035068,2]
[314624631,1708464637446,-150.99,0.00035068,30]
[314624632,1708464637456,-657.0,0.00035068,2]
[314624633,1708464637465,-2030.065876,0.00035342,2]
[314624634,1708464637475,-5032.68396393,0.00035342,2]
[314624635,1708464637490,-8968.10559407,0.00035342,2]
[314624636,1708464637500,-11103.544876,0.00035342,2]
[314624637,1708464637509,-164.66307769,0.00035441,2]
[314624638,1708464637517,-206.0,0.00035792,2]
[314624639,1708464637525,-164.66307769,0.00035952,2]
[314624640,1708464637536,-500.0,0.00035979,2]
[314624641,1708464637545,-1665.79998914,0.00036126,2]
[314624642,1708464637554,-386.867895,0.000362,26]
[314624643,1708464637563,-164.66307769,0.00036464,2]
[314624644,1708464637572,-2705.0,0.00036515,2]
[314624645,1708464637581,-105.35597042,0.00036532,2]
[314624646,1708464637592,-394.64402958,0.00036532,2]
[314624647,1708464637603,-997.0,0.00036536,2]
[314624648,1708464637612,-500.0,0.00036536,2]
[314624649,1708464637623,-1500.0,0.00036695,10]
[314624650,1708464637633,-900.12,0.00036695,2]
[314624651,1708464637642,-2390.06,0.00036936,2]
[314624652,1708464637651,-164.66307769,0.00036975,2]
[314624653,1708464637660,-791.67815583,0.0003698,2]
[314624654,1708464637685,-1935.64184417,0.0003698,2]
[314624655,1708464637694,-182.2,0.00036981,2]
[314624656,1708464637703,-3365.35,0.00036994,2]
[314624657,1708464637711,-492.34314363,0.00036998,2]
[314624658,1708464637721,-250.0,0.00037001,2]
[314624659,1708464637730,-150.0,0.00037008,2]
[314624660,1708464637739,-221.23,0.00037075,2]
[314624661,1708464637748,-7110.1332672,0.00037082,2]
[314624668,1708464640014,-597.32,0.00037082,2]
[314624669,1708464640095,-255.29,0.00037082,2]
[314624670,1708464640162,-15937.2567328,0.00037082,2]
[314624671,1708464640172,-699.89,0.00037098,2]
[314624672,1708464640182,-848.85,0.00037118,2]
[314624673,1708464640193,-2000.0,0.00037118,2]
[314624674,1708464640203,-258.87,0.00037118,2]
[314624675,1708464640214,-250.0,0.00037295,2]
[314624676,1708464640224,-13501.0,0.000374,3]
[314624677,1708464640233,-2550.08,0.00037447,2]
[314624678,1708464640244,-266.0,0.00037455,3]
[314624679,1708464640253,-164.66307769,0.00037486,2]
[314624680,1708464640263,-1852.42,0.00037529,2]
[314624681,1708464640274,-514.14,0.00037535,2]
[314624682,1708464640286,-200.0,0.00037576,2]
[314624683,1708464640295,-200.0,0.00037578,2]
[314624684,1708464640304,-170.99,0.00037635,2]
[314624685,1708464640314,-51.22717949,0.00037718,2]
[314624686,1708464640411,-109.66282051,0.00037718,2]
[314624687,1708464640421,-164.66307769,0.00037997,2]
[314624688,1708464640431,-255.44,0.00038134,2]
[314624689,1708464640440,-151.15,0.00038164,2]
[314624690,1708464640450,-541.0750869,0.0003818,2]
[314624691,1708464640474,-321.86394187,0.0003818,2]
[314624692,1708464640487,-134.06097123,0.0003818,2]
[314624693,1708464640496,-909.77733879,0.0003833,2]
[314624694,1708464640508,-483.78923207,0.0003833,2]
[314624713,1708464642486,-0.01695379,0.0003833,2]
[314624718,1708464642614,-2459.53667299,0.0003833,2]
[314624719,1708464642704,-12260.07515554,0.0003833,2]
[314624720,1708464642713,-255.44,0.00038335,2]
[314624721,1708464642724,-150.67,0.00038356,2]
[314624722,1708464642734,-1176.51,0.00038356,15]
[314624723,1708464642743,-3365.35,0.00038362,2]
[314624724,1708464642752,-7157.55782236,0.000384,2]
[314624725,1708464642765,-842.44217764,0.000384,2]
[314624726,1708464642775,-1684.69,0.000384,2]
[314624727,1708464642785,-168.49,0.00038409,2]
[314624728,1708464642795,-991.71,0.0003843,2]
[314624729,1708464642804,-200.0,0.00038431,2]
[314624730,1708464642814,-206.0,0.00038481,8]
[314624731,1708464642823,-164.66307769,0.00038508,2]
[314624732,1708464642832,-255.44,0.00038535,2]
[314624733,1708464642841,-255.44,0.00038736,2]
[314624734,1708464642850,-255.44,0.00038937,2]
[314624735,1708464642860,-258.87,0.00038974,2]
[314624736,1708464642870,-221.23,0.00039007,2]
[314624737,1708464642880,-164.66307769,0.00039019,2]
[314624738,1708464642890,-492.34314362,0.00039057,2]
[314624739,1708464642899,-255.44,0.00039137,2]
[314624740,1708464642909,-201.59,0.0003926,2]
[314624741,1708464642918,-255.44,0.00039338,2]
[314624742,1708464642927,-699.89,0.00039362,2]
[314624743,1708464642937,-164.66307769,0.00039531,2]
[314624744,1708464642946,-255.44,0.00039539,2]
[314624745,1708464642955,-3961.3198392,0.00039616,2]
[314624746,1708464642967,-12151.87551395,0.00039616,2]
[314624747,1708464642977,-4740.0,0.000397,2]
[314624748,1708464642986,-423.61799605,0.00039731,2]
[314624749,1708464642998,-2941.73200395,0.00039731,2]
[314624750,1708464643007,-255.44,0.0003974,2]
[314624751,1708464643016,-997.0,0.00039824,2]
[314624753,1708464643025,-255.44,0.0003994,2]
[314624755,1708464643034,-1000.0,0.00039964,2]
[314624756,1708464643044,-164.66307769,0.00040042,2]
[314624757,1708464643053,-255.44,0.00040141,2]
[314624758,1708464643061,-255.44,0.00040342,2]
[314624759,1708464643070,-255.44,0.00040542,2]
[314624760,1708464643079,-164.66307769,0.00040553,2]
[314624761,1708464643089,-1061.04,0.000406,4]
[314624762,1708464643098,-1061.04,0.000406,4]
[314624763,1708464643107,-1061.04,0.000406,4]
[314624764,1708464643116,-1061.04,0.000406,4]
[314624765,1708464643125,-1061.04,0.000406,4]
[314624766,1708464643134,-1061.04,0.000406,4]
[314624767,1708464643144,-921.68628267,0.000406,4]
[314624768,1708464643322,-139.35371733,0.000406,4]
[314624769,1708464643332,-1061.04,0.000406,4]
[314624770,1708464643341,-1061.04,0.000406,4]
[314624771,1708464643350,-1061.04,0.000406,4]
[314624772,1708464643360,-1061.04,0.000406,4]
[314624773,1708464643369,-1061.04,0.000406,4]
[314624774,1708464643379,-1061.04,0.000406,4]
[314624775,1708464643388,-1061.04,0.000406,4]
[314624776,1708464643585,-1061.04,0.000406,4]
[314624777,1708464643595,-1061.04,0.000406,4]
[314624778,1708464643605,-1061.04,0.000406,4]
[314624779,1708464643615,-1061.04,0.000406,4]
[314624780,1708464643629,-1061.04,0.000406,4]
[314624781,1708464643638,-1061.04,0.000406,4]
[314624782,1708464643648,-153.23,0.000406,4]
[314624783,1708464643657,-179.39,0.00040628,2]
[314624784,1708464643667,-201.59,0.00040733,2]
[314624785,1708464643676,-255.44,0.00040743,2]
[314624786,1708464643685,-318.11,0.000408,2]
[314624787,1708464643693,-258.87,0.0004083,2]
[314624788,1708464643703,-16113.19535315,0.00040901,3]
[314624789,1708464643712,-255.44,0.00040944,2]
[314624790,1708464643721,-1534.9126826,0.00040964,10]
[314624791,1708464643730,-151.0,0.00041,7]
[314624792,1708464643739,-167.05897778,0.00041022,31]
[314624793,1708464643748,-28838.9424404,0.00041023,10]
[314624794,1708464643756,-1727.001711,0.0004103,30]
[314624795,1708464643765,-150.0,0.0004103,30]
[314624796,1708464643774,-163.66924824,0.0004103,30]
[314624797,1708464643783,-79406.396,0.00041033,2]
[314624798,1708464643795,-164.66307769,0.00041064,2]
[314624799,1708464643805,-180.0,0.0004107,2]
[314624800,1708464643814,-6408.65387564,0.0004109,10]
[314624801,1708464643824,-943.59902,0.00041096,17]
[314624802,1708464643833,-3365.35,0.000411,2]
[314624803,1708464643842,-4740.49764242,0.000411,2]
[314624804,1708464643851,-3204.32693782,0.00041106,10]
[314624805,1708464643861,-492.34314362,0.00041116,2]
[314624806,1708464643869,-255.44,0.00041145,2]
[314624807,1708464643879,-206.0,0.00041171,14]
[314624808,1708464643888,-67290.8656942,0.00041206,10]
[314624809,1708464643897,-50000.0,0.00041216,30]
[314624810,1708464643907,-19630.63111775,0.00041216,19]
[314624811,1708464643916,-549.46774009,0.00041216,8]
[314624812,1708464643925,-19290.87279312,0.00041216,19]
[314624813,1708464643934,-8179.41695223,0.00041216,19]
[314624814,1708464643943,-255.44,0.00041345,2]
[314624815,1708464643952,-640.26104168,0.00041448,13]
[314624816,1708464643962,-997.0,0.00041468,2]
[314624817,1708464643972,-255.44,0.00041546,2]
[314624818,1708464643981,-151.0,0.00041548,7]
[314624819,1708464643990,-150.67,0.00041553,2]
[314624820,1708464643999,-154.4,0.0004156,2]
[314624821,1708464644009,-164.66307769,0.00041575,2]
[314624822,1708464644018,-3204.32693782,0.00041616,11]
[314624823,1708464644027,-699.89,0.00041626,2]
[314624824,1708464644036,-255.44,0.00041747,2]
[314624825,1708464644046,-848.85,0.00041758,2]
[314624826,1708464644055,-150.32331725,0.00041914,2]
[314624827,1708464644065,-255.44,0.00041947,2]
[314624828,1708464644074,-164.66307769,0.00042086,2]
[314624829,1708464644084,-1176.51,0.00042092,15]
[314624830,1708464644094,-151.0,0.00042096,7]
[314624831,1708464644103,-157.64255603,0.00042166,2]
[314624832,1708464644113,-16021.6346891,0.00042177,11]
[314624833,1708464644122,-79637.941216,0.00042177,8]
[314624834,1708464644131,-16113.19535315,0.00042187,4]
[314624835,1708464644141,-201.59,0.00042205,2]
[314624836,1708464644150,-1534.91268253,0.00042226,10]
[314624837,1708464644159,-3204.32693782,0.00042247,11]
[314624838,1708464644168,-1000.0,0.000424,8]
[314624839,1708464644177,-3365.35,0.00042469,2]
[314624840,1708464644186,-157.022178,0.00042548,36]
[314624841,1708464644195,-300.0,0.00042575,2]
[314624842,1708464644205,-3204.32693782,0.00042588,11]
[314624843,1708464644213,-164.66307769,0.00042598,2]
[314624844,1708464644222,-151.0,0.00042644,7]
[314624845,1708464644231,-151.022178,0.00042648,35]
[314624846,1708464644241,-258.87,0.00042686,2]
[314624847,1708464644250,-2000.0,0.000427,2]
[314624848,1708464644260,-157.022178,0.00042748,36]
[314624849,1708464644269,-151.0,0.00042751,2]
[314624850,1708464644278,-150.0,0.00042771,2]
[314624851,1708464644288,-3204.32693782,0.0004279,11]
[314624852,1708464644297,-1987.63071306,0.000428,5]
[314624853,1708464644306,-151.022178,0.00042848,35]
[314624854,1708464644316,-6408.65387564,0.0004289,11]
[314624855,1708464644325,-1061.04,0.000429,4]
[314624856,1708464644334,-1061.04,0.000429,4]
[314624857,1708464644343,-1061.04,0.000429,4]
[314624858,1708464644352,-1061.04,0.000429,4]
[314624859,1708464644361,-1061.04,0.000429,4]
[314624860,1708464644371,-1061.04,0.000429,4]
[314624861,1708464644380,-1061.04,0.000429,4]
[314624862,1708464644391,-1061.04,0.000429,4]
[314624863,1708464644402,-1061.04,0.000429,4]
[314624864,1708464644412,-1061.04,0.000429,4]
[314624865,1708464644423,-1061.04,0.000429,4]
[314624866,1708464644433,-1061.04,0.000429,4]
[314624867,1708464644443,-1061.04,0.000429,4]
[314624868,1708464644453,-1061.04,0.000429,4]
[314624869,1708464644462,-1061.04,0.000429,4]
[314624870,1708464644471,-1061.04,0.000429,4]
[314624871,1708464644481,-1061.04,0.000429,4]
[314624872,1708464644491,-1061.04,0.000429,4]
[314624873,1708464644500,-1061.04,0.000429,4]
[314624874,1708464644510,-1061.04,0.000429,4]
[314624875,1708464644519,-153.23,0.000429,4]
[314624876,1708464644528,-153.23,0.000429,4]
[314624877,1708464644539,-151.15,0.00042934,2]
[314624878,1708464644548,-157.022178,0.00042948,36]
[314624879,1708464644558,-150.0,0.0004297,2]
[314624880,1708464644567,-150.0,0.00042973,2]
[314624881,1708464644577,-168.0,0.00043,90]
[314624882,1708464644586,-166.0,0.00043,90]
[314624883,1708464644596,-151.022178,0.00043048,40]
[314624884,1708464644606,-165.83,0.00043096,2]
[314624885,1708464644618,-164.66307769,0.00043109,2]
[314624886,1708464644628,-997.0,0.00043112,2]
[314624887,1708464644638,-151.022178,0.00043148,42]
[314624888,1708464644649,-150.0,0.00043161,2]
[314624889,1708464644658,-150.0,0.00043185,2]
[314624890,1708464644668,-150.0,0.00043191,2]
[314624891,1708464644677,-151.0,0.00043192,7]
[314624892,1708464644687,-150.0,0.00043235,2]
[314624893,1708464644697,-151.022178,0.00043238,42]
[314624894,1708464644706,-150.0,0.00043239,2]
[314624895,1708464644716,-151.022178,0.00043248,40]
[314624896,1708464644725,-500.0,0.00043333,30]
[314624897,1708464644734,-151.022178,0.00043338,42]
[314624898,1708464644743,-151.022178,0.00043348,41]
[314624899,1708464644752,-150.0,0.00043349,2]
[314624900,1708464644761,-150.0,0.00043352,2]
[314624901,1708464644770,-1665.79998914,0.00043421,3]
[314624902,1708464644780,-151.022178,0.00043438,42]
[314624903,1708464644790,-151.022178,0.00043438,42]
[314624904,1708464644799,-151.022178,0.00043448,40]
[314624905,1708464644808,-16113.19535315,0.00043472,5]
[314624906,1708464644817,-1534.91268253,0.00043489,11]
[314624907,1708464644826,-151.022178,0.00043538,42]
[314624908,1708464644835,-150.0,0.0004354,2]
[314624909,1708464644844,-151.022178,0.00043548,41]
[314624910,1708464644853,-150.0,0.00043563,2]
[314624911,1708464644863,-150.0,0.00043567,2]
[314624912,1708464644872,-150.0,0.00043571,2]
[314624913,1708464644881,-150.0,0.00043582,2]
[314624914,1708464644890,-150.0,0.0004361,2]
[314624915,1708464644899,-164.66307769,0.0004362,2]
[314624916,1708464644909,-781.06,0.00043628,10]
[314624917,1708464644918,-151.022178,0.00043638,42]
[314624918,1708464644927,-151.022178,0.00043648,40]
[314624919,1708464644937,-150.0,0.00043657,2]
[314624920,1708464644946,-150.0,0.00043664,2]
[314624921,1708464644956,-150.0,0.00043676,2]
[314624922,1708464644965,-201.59,0.00043677,2]
[314624923,1708464644974,-150.0,0.00043712,2]
[314624924,1708464644983,-151.022178,0.00043738,42]
[314624925,1708464644992,-151.0,0.0004374,7]
[314624926,1708464645001,-151.022178,0.00043748,41]
[314624927,1708464645011,-17929.1742845,0.00043751,2]
[314624928,1708464645021,-176.0991033,0.00043791,13]
[314624929,1708464645030,-152.72386396,0.000438,21]
[314624930,1708464645040,-1533.0,0.000438,2]
[314624931,1708464645049,-150.0,0.00043815,2]
[314624932,1708464645059,-150.0,0.00043823,2]
[314624933,1708464645069,-200.0,0.00043836,30]
[314624934,1708464645078,-151.022178,0.00043838,42]
[314624935,1708464645088,-151.022178,0.00043848,40]
[314624936,1708464645097,-206.0,0.00043861,21]
[314624937,1708464645107,-17198.16294328,0.00043871,2]
[314624938,1708464645116,-50616.31794881,0.00043874,10]
[314624939,1708464645484,-714.2364726,0.00043874,10]
[314624940,1708464645545,-431.60659171,0.00043874,10]
[314624941,1708464645573,-254.86173603,0.00043874,10]
[314624942,1708464645585,-51723.87168609,0.00043874,10]
[314624943,1708464645597,-532.98005436,0.00043874,10]
[314624944,1708464645613,-55002.0079424,0.00043874,10]
[314624945,1708464645622,-51556.0589,0.00043884,2]
[314624946,1708464645632,-245000.0,0.00043884,2]
[314624947,1708464645642,-699.89,0.0004389,2]
[314624948,1708464645653,-150.0,0.00043891,2]
[314624949,1708464645662,-45782.0,0.000439,30]
[314624950,1708464645672,-150.0,0.000439,2]
[314624951,1708464645680,-150.0,0.00043922,2]
[314624952,1708464645691,-938.52736995,0.00043925,2]
[314624953,1708464645701,-150.0,0.00043937,2]
[314624954,1708464645709,-150.0,0.00043942,2]
[314624955,1708464645718,-151.022178,0.00043948,41]
[314624956,1708464645727,-159275.882432,0.00043974,10]
[314624957,1708464645736,-24456.57471025,0.00043984,4]
[314624958,1708464645747,-266079.82944985,0.00043984,4]
[314624959,1708464645773,-0.1173492,0.00043984,4]
[314624960,1708464645784,-1626.95641318,0.00043984,4]
[314624961,1708464645795,-3038.82060904,0.00043984,4]
[314624962,1708464645806,-1450.16783378,0.00043984,4]
[314624963,1708464645843,-31022.97569975,0.00043984,4]
[314624964,1708464645852,-26289.09625204,0.0004399,10]
[314624965,1708464645868,-1408.87170037,0.0004399,10]
[314624966,1708464645879,-281.13637335,0.0004399,10]
[314624967,1708464645890,-848.30362295,0.0004399,10]
[314624969,1708464787943,-400.0,0.00034519,3]
[314624970,1708464787965,-400.0,0.00034519,3]
[314624971,1708464787988,-150.0,0.00034519,3]
[314624972,1708464788010,-3450.0,0.0003452,2]
[314624974,1708465005814,750.0,0.00025,3]
[314624975,1708465633329,-248.7618202,0.00026999,2]
[314624976,1708465633350,-800.0,0.00027,3]
[314624977,1708465633369,-158.94,0.00027397,2]
[314624978,1708465633392,-688.88727195,0.00029,3]
[314624979,1708465719035,-161.11272805,0.00029,3]
[314624980,1708465747128,-1422.88,0.00032703,2]
[314624981,1708465747147,-1446.89,0.0003272,2]
[314624982,1708465747168,-334.22893308,0.00032791,4]
[314624983,1708465747189,-206.0,0.00032792,2]
[314624984,1708465747208,-356.79744284,0.00033106,2]
[314624985,1708465753095,-1081.69255716,0.00033106,2]
[314624986,1708465753115,-1425.87,0.00033615,2]
[314624987,1708465753135,-1428.65,0.00034135,2]
[314624988,1708465753155,-164.41099875,0.0003442,2]
[314624989,1708465753175,-826.48132194,0.00034519,4]
[314624990,1708465753196,-2557.904865,0.0003452,2]
[314624991,1708465753216,-1436.48,0.0003452,2]
[314624992,1708465753237,-1474.53,0.0003452,2]
[314624993,1708465753256,-1452.72,0.0003452,2]
[314624994,1708465753276,-1469.13,0.0003452,2]
[314624995,1708465753295,-1474.29,0.0003452,2]
[314624996,1708465753316,-1468.24,0.0003452,2]
[314624997,1708465753336,-1432.69,0.0003452,2]
[314624998,1708465753357,-4564.110374,0.0003452,2]
[314624999,1708465753377,-428.664364,0.0003452,2]
[314625000,1708465753396,-212.7581,0.00034694,2]
[314625001,1708465753417,-4515.91841915,0.00034794,2]
[314625002,1708465753445,-4495.93887885,0.00034794,2]
[314625003,1708465753465,-6846.165561,0.00034794,2]
[314625004,1708465753485,-642.996547,0.00034794,2]
[314625005,1708465753505,-12015.809731,0.00034931,2]
[314625006,1708465753524,-150.99,0.00034931,2]
[314625007,1708465753543,-8612.79328215,0.00034931,2]
[314625008,1708465764096,-1451.65,0.00033395,2]
[314625009,1708465764116,-392.77295084,0.00034715,4]
[314625010,1708465764138,-515.42746585,0.00034931,2]
[314625011,1708465764158,-857.328729,0.00034931,2]
[314625012,1708465768091,-8930.8454,0.00035068,2]
[314625013,1708465771151,-6088.916764,0.00035068,2]
[314625014,1708465771171,-2545.56,0.00035068,2]
[314625015,1708465771191,-11410.275935,0.00035068,2]
[314625016,1708465771211,-1071.660912,0.00035068,2]
[314625017,1708465771232,-499.99,0.00035068,2]
[314625018,1708465771252,-164.11438122,0.00035242,2]
[314625019,1708465771274,-21027.66703,0.00035342,2]
[314625020,1708465771295,-15974.38631,0.00035342,2]
[314625021,1708465771315,-1500.325277,0.00035342,2]
[314625022,1708465771335,-164.41099875,0.00035401,2]
[314625023,1708465771355,-206.0,0.00035815,8]
[314625024,1708465771375,-5267.006953,0.000362,26]
[314625025,1708465771394,-559.91,0.0003635,2]
[314625026,1708465771414,-144.02342963,0.00036381,2]
[314625045,1708465831818,-389.274001,0.00035068,2]
[314625046,1708465831834,-1043.175999,0.00035068,2]
[314625047,1708465831843,-1451.58,0.00035118,2]
[314625048,1708465831853,-1459.21,0.00035168,2]
[314625049,1708465831862,-826.48132194,0.00035341,4]
[314625050,1708465831871,-20.38756912,0.00036381,2]
[314625051,1708465831881,-54.69672945,0.00036406,2]
[314625052,1708465831948,-519.07327055,0.00036406,2]
[314625053,1708465831957,-282.83550945,0.00036759,2]
[314625057,1708465832053,-1244.63752,0.00036759,2]
[314625090,1708465833904,203.0,0.00032792,2]
[314625099,1708465837577,-472.52697055,0.00036759,2]
[314625101,1708465837588,-1684.69,0.00036802,2]
[314625103,1708465837598,-500.0,0.00036812,3]
[314625105,1708465837608,-420.55709216,0.00036824,2]
[314625106,1708465837682,-2284.44290784,0.00036824,2]
[314625107,1708465837691,-741.39,0.00036886,37]
[314625108,1708465837702,-1346.14,0.00036896,2]
[314625109,1708465837713,-223.8161715,0.00036898,2]
[314625110,1708465837726,-108.5138285,0.00036898,2]
[314625111,1708465837736,-258.87,0.00037141,2]
[314625112,1708465837746,-164.41099875,0.00037362,2]
[314625113,1708465837755,-11.88549568,0.000375,3]
[314625114,1708465837768,-2451.11450432,0.000375,3]
[314625115,1708465837779,-200.0,0.00038059,2]
[314625116,1708465837788,-867.79738302,0.00038168,2]
[314625117,1708465837804,-292.94859789,0.00038168,2]
[314625118,1708465837906,-4556.86413788,0.00038168,2]
[314625119,1708465837915,-164.1143812,0.00038179,2]
[314625120,1708465837929,-1346.14,0.00038261,2]
[314625121,1708465837938,-258.87,0.00038268,2]
[314625122,1708465837948,-1195.03,0.00038268,2]
[314625123,1708465837958,-750.1,0.00038268,2]
[314625124,1708465837968,-7418.06141884,0.00038268,2]
[314625125,1708465837988,-2183.19584611,0.00038268,2]
[314625127,1708465838005,-6948.66098997,0.00038268,2]
[314625131,1708465838097,-0.15532783,0.00038268,2]
[314625132,1708465838109,-3533.88886504,0.00038268,2]
[314625133,1708465838121,-1697.05221973,0.00038268,2]
[314625134,1708465838142,-2118.98533248,0.00038268,2]
[314625135,1708465838152,-509.31,0.00038268,2]
[314625136,1708465838162,-250.0,0.00038324,2]
[314625137,1708465838171,-164.41099875,0.00038343,2]
[314625138,1708465838181,-1375.25,0.00038356,15]
[314625139,1708465838190,-151.04,0.00038356,2]
[314625140,1708465838201,-490.69,0.00038364,2]
[314625141,1708465838210,-6370.0,0.000384,2]
[314625142,1708465838227,-332.33,0.00038542,2]
[314625143,1708465838236,-221.23,0.00038571,2]
[314625144,1708465838245,-1000.0,0.00038617,2]
[314625145,1708465838255,-573.77,0.0003867,2]
[314625146,1708465838264,-206.0,0.00038838,14]
[314625147,1708465838274,-900.0,0.00039,40]
[314625148,1708465838283,-912.72,0.00039178,2]
[314625149,1708465838293,-201.61,0.0003926,2]
[314625150,1708465838303,-164.41099875,0.00039324,2]
[314625151,1708465838312,-2778.6387,0.00039516,2]
[314625152,1708465838321,-1346.14,0.00039626,2]
[314625153,1708465838332,-5717.61011871,0.00039626,2]
[314625154,1708465838342,-6370.0,0.000397,2]
[314625155,1708465838352,-12437.0,0.00039992,2]
[314625156,1708465838361,-2104.44703244,0.0004,4]
[314625157,1708465838370,-168.49,0.00040181,2]
[314625158,1708465838380,-332.33,0.00040186,2]
[314625159,1708465838389,-164.41099875,0.00040304,2]
[314625160,1708465838399,-2500.0,0.000405,2]
[314625161,1708465838408,-151.0,0.00040521,120]
[314625162,1708465838418,-180.0,0.00040585,2]
[314625163,1708465838428,-621.79162954,0.00040599,4]
[314625164,1708465838437,-913.22,0.000406,4]
[314625165,1708465838447,-913.22,0.000406,4]
[314625166,1708465838456,-587.95164089,0.000406,4]
[314625167,1708465838469,-325.26835911,0.000406,4]
[314625168,1708465838479,-327.42474806,0.000406,4]
[314625169,1708465838491,-585.79525194,0.000406,4]
[314625170,1708465838500,-852.36927863,0.000406,4]
[314625171,1708465838513,-60.85072137,0.000406,4]